[Event "Veteran-SM 65+ 2025"]
[Site "Uppsala, Sweden"]
[Date "2025.06.28"]
[Round "1.7"]
[White "Hogberg, Thomas"]
[Black "Algars, Olle"]
[Result "1/2-1/2"]
[TimeControl "90 min for 40 move + 30 min with an increment of 30 sec starting move 1"]
[WhiteFideId "1706039"]
[BlackFideId "1702513"]
[WhiteElo "1979"]
[BlackElo "1870"]

1. d4 {[%clk 01:30:43]} {[%emt 00:00:16]} Nf6 {[%clk 01:30:54]} {[%emt
00:00:06]} 2. Nf3 {[%clk 01:29:49]} {[%emt 00:01:30]} d5 {[%clk 01:29:26]}
{[%emt 00:01:55]} 3. Bf4 {[%clk 01:29:35]} {[%emt 00:00:42]} e6 {[%clk
01:29:04]} {[%emt 00:00:51]} 4. e3 {[%clk 01:29:08]} {[%emt 00:01:01]} c5
{[%clk 01:27:46]} {[%emt 00:01:46]} 5. c3 {[%clk 01:26:50]} {[%emt 00:02:48]}
Nc6 {[%clk 01:25:45]} {[%emt 00:02:35]} 6. Bd3 {[%clk 01:26:14]} {[%emt
00:01:04]} Bd7 {[%clk 01:19:21]} {[%emt 00:06:54]} 7. Nbd2 {[%clk 01:22:58]}
{[%emt 00:03:43]} Rc8 {[%clk 01:17:38]} {[%emt 00:02:12]} 8. Ne5 {[%clk
01:10:04]} {[%emt 00:13:26]} cxd4 {[%clk 01:14:57]} {[%emt 00:03:10]} 9. exd4
{[%clk 01:10:05]} {[%emt 00:00:30]} g6 {[%clk 01:15:02]} {[%emt 00:00:26]} 10.
h3 {[%clk 01:06:08]} {[%emt 00:04:26]} Nh5 {[%clk 01:07:39]} {[%emt 00:07:54]}
11. Bh2 {[%clk 01:05:45]} {[%emt 00:00:51]} Bh6 {[%clk 01:07:25]} {[%emt
00:00:44]} 12. Qf3 {[%clk 00:55:50]} {[%emt 00:10:31]} Nxe5 {[%clk 01:04:08]}
{[%emt 00:03:42]} 13. Bxe5 {[%clk 00:54:34]} {[%emt 00:01:45]} O-O {[%clk
01:01:11]} {[%emt 00:03:27]} 14. g4 {[%clk 00:46:05]} {[%emt 00:08:59]} Qg5
{[%clk 01:01:26]} {[%emt 00:00:15]} 15. Nf1 {[%clk 00:45:08]} {[%emt 00:01:27]}
Nf4 {[%clk 00:59:13]} {[%emt 00:02:42]} 16. Bc2 {[%clk 00:45:15]} {[%emt
00:00:23]} f5 {[%clk 00:54:50]} {[%emt 00:04:53]} 17. Rg1 {[%clk 00:39:07]}
{[%emt 00:06:38]} Bb5 {[%clk 00:49:01]} {[%emt 00:06:20]} 18. h4 {[%clk
00:30:52]} {[%emt 00:08:44]} Qxh4 {[%clk 00:34:01]} {[%emt 00:15:31]} 19. Bxf4
{[%clk 00:30:18]} {[%emt 00:01:04]} fxg4 {[%clk 00:32:35]} {[%emt 00:01:55]} 20.
Rxg4 {[%clk 00:30:22]} {[%emt 00:00:26]} Qf6 {[%clk 00:31:36]} {[%emt
00:01:29]} 21. Qg2 {[%clk 00:24:06]} {[%emt 00:06:47]} Bxf4 {[%clk 00:31:22]}
{[%emt 00:00:43]} 22. Bxg6 {[%clk 00:24:27]} {[%emt 00:00:13]} Kh8 {[%clk
00:30:06]} {[%emt 00:01:42]} 23. Bc2 {[%clk 00:22:39]} {[%emt 00:02:19]} Rc7
{[%clk 00:28:32]} {[%emt 00:02:04]} 24. Ng3 {[%clk 00:16:58]} {[%emt 00:06:11]}
Rg7 {[%clk 00:17:32]} {[%emt 00:11:30]} 25. Rxg7 {[%clk 00:12:37]} {[%emt
00:04:52]} Qxg7 {[%clk 00:17:53]} {[%emt 00:00:07]} 26. Rd1 {[%clk 00:12:45]}
{[%emt 00:00:23]} Bxg3 {[%clk 00:13:03]} {[%emt 00:05:20]} 27. Qxg3 {[%clk
00:11:25]} {[%emt 00:01:50]} Qxg3 {[%clk 00:13:23]} {[%emt 00:00:09]} 28. fxg3
{[%clk 00:11:52]} {[%emt 00:00:04]} Rf3 {[%clk 00:11:25]} {[%emt 00:02:38]} 29.
Kd2 {[%clk 00:10:04]} {[%emt 00:02:10]} Kg7 {[%clk 00:11:23]} {[%emt 00:00:37]}
30. Rh1 {[%clk 00:09:57]} {[%emt 00:00:31]} Rf2+ {[%clk 00:11:12]} {[%emt
00:00:42]} 31. Kc1 {[%clk 00:09:54]} {[%emt 00:00:32]} Rf1+ {[%clk 00:10:47]}
{[%emt 00:00:56]} 32. Rxf1 {[%clk 00:10:18]} {[%emt 00:00:04]} Bxf1 {[%clk
00:11:13]} {[%emt 00:00:06]} 33. Kd2 {[%clk 00:10:42]} {[%emt 00:00:04]} h5
{[%emt 00:00:11]} 34. Ke3 {[%emt 00:00:07]} Kf6 {[%clk 00:11:13]} {[%emt
00:00:12]} 35. Kf4 {[%clk 00:11:06]} {[%emt 00:00:07]} Be2 {[%emt 00:00:12]} 36.
Ba4 {[%emt 00:01:33]} b6 {[%emt 00:00:51]} 1/2-1/2

[Event "Veteran-SM 65+ 2025"]
[Site "Uppsala, Sweden"]
[Date "2025.06.28"]
[Round "1.8"]
[White "Ranby, Hans"]
[Black "Dolata, Henryk"]
[Result "1-0"]
[TimeControl "90 min for 40 move + 30 min with an increment of 30 sec starting move 1"]
[WhiteFideId "1710311"]
[BlackFideId "1709046"]
[WhiteElo "1868"]
[BlackElo "1958"]

1. Nf3 {[%clk 01:30:55]} {[%emt 00:00:04]} Nf6 {[%clk 01:30:35]} {[%emt
00:00:26]} 2. e3 {[%clk 01:31:13]} {[%emt 00:00:11]} e6 {[%clk 01:30:49]}
{[%emt 00:00:20]} 3. c4 {[%clk 01:31:28]} {[%emt 00:00:11]} b6 {[%clk
01:29:17]} {[%emt 00:02:02]} 4. b3 {[%clk 01:31:15]} {[%emt 00:00:44]} Bb7
{[%clk 01:29:29]} {[%emt 00:00:19]} 5. Bb2 {[%clk 01:31:28]} {[%emt 00:00:14]}
Be7 {[%clk 01:29:34]} {[%emt 00:00:28]} 6. Be2 {[%clk 01:31:20]} {[%emt
00:00:39]} O-O {[%clk 01:29:51]} {[%emt 00:00:11]} 7. O-O {[%clk 01:31:31]}
{[%emt 00:00:17]} d5 {[%clk 01:29:41]} {[%emt 00:00:41]} 8. Nc3 {[%clk
01:31:00]} {[%emt 00:01:06]} c5 {[%emt 00:03:07]} 9. d4 {[%clk 01:29:45]} Nbd7
{[%clk 01:28:35]} {[%emt 00:00:40]} 10. Bd3 {[%clk 01:25:18]} {[%emt 00:04:57]}
Rc8 {[%clk 01:25:13]} {[%emt 00:03:54]} 11. Rc1 {[%clk 01:23:03]} {[%emt
00:02:44]} Qc7 {[%clk 01:18:13]} {[%emt 00:07:30]} 12. Qe2 {[%clk 01:16:26]}
{[%emt 00:07:15]} Qb8 {[%clk 01:16:11]} {[%emt 00:02:23]} 13. e4 {[%clk
01:13:15]} {[%emt 00:03:40]} cxd4 {[%clk 01:09:59]} {[%emt 00:06:44]} 14. Nxd4
{[%clk 01:10:28]} {[%emt 00:03:16]} Nc5 {[%emt 00:18:15]} 15. exd5 {[%clk
01:06:21]} {[%emt 00:00:59]} Nxd3 {[%clk 00:55:56]} {[%emt 00:00:27]} 16. Qxd3
{[%clk 01:06:14]} {[%emt 00:00:35]} exd5 {[%clk 00:38:19]} {[%emt 00:18:08]} 17.
Nf5 {[%clk 00:56:47]} {[%emt 00:09:57]} Bc5 {[%clk 00:27:09]} {[%emt 00:11:40]}
18. Nxd5 {[%clk 00:51:39]} {[%emt 00:05:38]} Nxd5 19. cxd5 {[%clk 00:50:52]} f6
{[%clk 00:26:30]} {[%emt 00:00:41]} 20. d6 {[%clk 00:42:01]} {[%emt 00:09:19]}
Rcd8 {[%clk 00:26:10]} {[%emt 00:00:50]} 21. Qg3 {[%clk 00:28:59]} {[%emt
00:13:34]} g6 {[%clk 00:25:32]} {[%emt 00:01:09]} 22. Rcd1 {[%clk 00:23:13]}
{[%emt 00:06:13]} Be4 {[%clk 00:22:35]} {[%emt 00:03:27]} 23. Nh6+ {[%clk
00:19:46]} {[%emt 00:03:57]} Kg7 {[%clk 00:22:41]} {[%emt 00:00:24]} 24. Ng4
{[%clk 00:19:41]} {[%emt 00:00:34]} Bxd6 {[%clk 00:17:41]} {[%emt 00:05:31]} 25.
Qe3 {[%clk 00:17:14]} {[%emt 00:02:56]} Bc2 {[%clk 00:10:24]} {[%emt 00:07:48]}
26. Qh6+ {[%clk 00:15:41]} {[%emt 00:02:03]} Kg8 {[%clk 00:10:26]} {[%emt
00:00:29]} 27. Nxf6+ {[%clk 00:13:54]} {[%emt 00:02:16]} Rxf6 {[%clk 00:10:17]}
{[%emt 00:00:40]} 28. Bxf6 {[%clk 00:14:01]} {[%emt 00:00:22]} Rd7 {[%clk
00:09:12]} {[%emt 00:01:37]} 29. Ra1 {[%clk 00:07:46]} {[%emt 00:06:43]} Rf7
{[%clk 00:08:05]} {[%emt 00:01:38]} 30. Bb2 {[%clk 00:07:10]} {[%emt 00:01:05]}
Bf5 {[%clk 00:07:51]} {[%emt 00:00:47]} 31. Qd2 {[%clk 00:05:00]} {[%emt
00:02:36]} Bxh2+ {[%clk 00:06:38]} {[%emt 00:01:44]} 32. Kh1 {[%clk 00:05:14]}
{[%emt 00:00:15]} Be5 {[%clk 00:06:59]} {[%emt 00:00:08]} 33. Bxe5 {[%clk
00:04:21]} {[%emt 00:01:25]} Qxe5 {[%clk 00:07:28]} 34. Rfe1 {[%clk 00:03:58]}
{[%emt 00:00:53]} Qf6 {[%clk 00:07:16]} {[%emt 00:00:41]} 35. Rad1 {[%clk
00:03:21]} {[%emt 00:01:05]} Qc6 {[%clk 00:03:53]} {[%emt 00:03:54]} 36. Qd5
{[%clk 00:02:46]} {[%emt 00:01:06]} Qxd5 {[%clk 00:03:06]} {[%emt 00:01:17]} 37.
Rxd5 {[%clk 00:03:02]} {[%emt 00:00:15]} Rc7 {[%emt 00:00:32]} 38. Rde5 {[%clk
00:02:33]} {[%emt 00:00:55]} Kf8 {[%clk 00:03:06]} {[%emt 00:00:31]} 39. Kg1
{[%clk 00:02:21]} {[%emt 00:00:42]} Kf7 {[%clk 00:03:14]} {[%emt 00:00:23]} 40.
Re8 {[%clk 00:02:13]} {[%emt 00:00:38]} h5 {[%clk 00:03:07]} {[%emt 00:00:36]}
41. R1e2 {[%clk 00:01:13]} {[%emt 00:01:30]} Bd3 {[%clk 00:01:18]} {[%emt
00:02:17]} 42. R2e3 {[%clk 00:00:43]} {[%emt 00:01:02]} Bf5 {[%clk 00:00:35]}
{[%emt 00:01:13]} 43. f3 {[%clk 00:28:40]} {[%emt 00:02:33]} Rd7 {[%clk
00:25:53]} {[%emt 00:05:12]} 44. Kf2 {[%clk 00:26:25]} {[%emt 00:02:45]} Bb1
{[%clk 00:23:55]} {[%emt 00:02:28]} 45. a3 {[%clk 00:25:51]} {[%emt 00:01:04]}
Bf5 {[%clk 00:23:49]} {[%emt 00:00:36]} 46. Ra8 {[%clk 00:25:30]} {[%emt
00:00:51]} a5 {[%clk 00:14:28]} {[%emt 00:09:59]} 47. Rb8 {[%clk 00:24:25]}
{[%emt 00:01:28]} Rd6 {[%clk 00:14:26]} {[%emt 00:00:32]} 48. Rc3 {[%clk
00:23:23]} {[%emt 00:01:32]} Be6 {[%clk 00:11:31]} {[%emt 00:03:24]} 49. Rc7+
{[%clk 00:20:46]} {[%emt 00:03:07]} Kf6 {[%clk 00:10:59]} {[%emt 00:01:03]} 50.
Rcb7 {[%clk 00:20:07]} {[%emt 00:01:09]} Rd2+ {[%clk 00:07:09]} {[%emt
00:04:19]} 51. Kf1 {[%clk 00:18:28]} {[%emt 00:02:09]} Kg5 {[%clk 00:05:06]} 52.
Rxb6 {[%clk 00:17:28]} Bf5 {[%clk 00:03:09]} {[%emt 00:03:08]} 53. b4 h4 {[%emt
00:01:32]} 54. bxa5 {[%emt 00:01:34]} Kf4 {[%clk 00:01:47]} {[%emt 00:00:36]}
55. a6 {[%clk 00:16:32]} {[%emt 00:01:28]} Ra2 {[%clk 00:00:57]} {[%emt
00:01:20]} 56. a7 {[%clk 00:15:10]} {[%emt 00:01:52]} Ra1+ {[%clk 00:00:43]}
{[%emt 00:00:44]} 57. Ke2 {[%clk 00:15:10]} {[%emt 00:00:30]} Ra2+ {[%clk
00:01:12]} {[%emt 00:00:01]} 58. Rb2 {[%emt 00:01:36]} 1-0

[Event "Veteran-SM 65+ 2025"]
[Site "Uppsala, Sweden"]
[Date "2025.06.29"]
[Round "2.1"]
[White "Magnussen, Pal"]
[Black "Johansson, Jan"]
[Result "1/2-1/2"]
[TimeControl "90 min for 40 move + 30 min with an increment of 30 sec starting move 1"]
[BlackTitle "IM"]
[WhiteFideId "1711814"]
[BlackFideId "1700103"]
[WhiteElo "1954"]
[BlackElo "2258"]

1. e4 {[%clk 01:30:57]} {[%emt 00:00:01]} g6 {[%clk 01:30:51]} {[%emt
00:00:11]} 2. d4 {[%clk 01:30:42]} {[%emt 00:00:44]} Bg7 {[%clk 01:31:15]}
{[%emt 00:00:06]} 3. Nc3 {[%clk 01:30:17]} {[%emt 00:00:56]} d6 {[%clk
01:31:28]} {[%emt 00:00:17]} 4. h3 {[%clk 01:30:11]} {[%emt 00:00:35]} c6
{[%clk 01:28:12]} {[%emt 00:03:47]} 5. a4 {[%clk 01:27:22]} {[%emt 00:03:19]}
Nd7 {[%clk 01:17:13]} {[%emt 00:11:28]} 6. Nf3 {[%clk 01:25:32]} {[%emt
00:02:20]} Qc7 {[%clk 01:14:15]} {[%emt 00:03:28]} 7. Be2 {[%clk 01:13:49]}
{[%emt 00:12:12]} Ngf6 {[%clk 01:14:06]} {[%emt 00:00:40]} 8. O-O {[%clk
01:13:51]} {[%emt 00:00:29]} O-O {[%clk 01:14:15]} {[%emt 00:00:21]} 9. Be3
{[%clk 01:10:00]} {[%emt 00:04:21]} b6 {[%clk 01:00:37]} {[%emt 00:14:08]} 10.
b4 {[%clk 00:55:32]} {[%emt 00:14:58]} a6 {[%clk 00:53:47]} {[%emt 00:07:19]}
11. Qd3 {[%clk 00:49:55]} {[%emt 00:06:07]} Bb7 {[%clk 00:46:29]} {[%emt
00:07:48]} 12. Rfd1 {[%clk 00:40:13]} {[%emt 00:10:12]} Rfe8 {[%clk 00:36:21]}
{[%emt 00:10:38]} 13. Rac1 {[%clk 00:34:33]} {[%emt 00:06:10]} e5 {[%clk
00:35:14]} {[%emt 00:01:37]} 14. dxe5 {[%clk 00:32:53]} {[%emt 00:02:10]} dxe5
{[%clk 00:35:38]} {[%emt 00:00:06]} 15. Qc4 {[%clk 00:31:07]} {[%emt 00:02:17]}
Rac8 {[%clk 00:32:42]} {[%emt 00:03:26]} 16. Qb3 {[%clk 00:27:05]} {[%emt
00:04:32]} Re7 {[%clk 00:30:47]} {[%emt 00:02:24]} 17. a5 {[%clk 00:25:48]}
{[%emt 00:01:48]} b5 {[%clk 00:30:24]} {[%emt 00:00:52]} 18. Rd3 {[%clk
00:21:19]} {[%emt 00:04:59]} c5 {[%clk 00:30:13]} {[%emt 00:00:42]} 19. bxc5
{[%clk 00:21:19]} {[%emt 00:00:30]} Nxc5 {[%clk 00:30:25]} {[%emt 00:00:17]} 20.
Bxc5 {[%clk 00:21:36]} {[%emt 00:00:14]} Qxc5 {[%clk 00:30:48]} {[%emt
00:00:06]} 21. Rcd1 {[%clk 00:21:41]} {[%emt 00:00:26]} Bxe4 {[%clk 00:29:17]}
{[%emt 00:02:01]} 22. Rd8+ {[%clk 00:19:37]} {[%emt 00:02:33]} Re8 {[%clk
00:24:36]} {[%emt 00:05:12]} 23. Rxe8+ {[%clk 00:19:19]} {[%emt 00:00:48]} Rxe8
{[%clk 00:24:56]} {[%emt 00:00:09]} 24. Ng5 {[%clk 00:19:35]} {[%emt 00:00:14]}
Bf5 {[%clk 00:21:47]} {[%emt 00:03:39]} 25. Qxf7+ {[%clk 00:19:37]} {[%emt
00:00:28]} Kh8 {[%clk 00:22:12]} {[%emt 00:00:05]} 26. Qb3 {[%clk 00:19:53]}
{[%emt 00:00:14]} h6 {[%clk 00:22:26]} {[%emt 00:00:17]} 27. Nf7+ {[%clk
00:17:09]} {[%emt 00:03:13]} Kh7 {[%clk 00:21:52]} {[%emt 00:01:04]} 28. Nd6
{[%clk 00:16:17]} {[%emt 00:01:23]} Be6 {[%clk 00:20:08]} {[%emt 00:02:13]} 29.
Qb2 {[%clk 00:13:55]} {[%emt 00:02:53]} Rd8 {[%clk 00:18:42]} {[%emt 00:01:55]}
30. Nce4 {[%clk 00:10:41]} {[%emt 00:03:44]} Nxe4 {[%clk 00:11:33]} {[%emt
00:07:39]} 31. Nxe4 {[%clk 00:10:57]} {[%emt 00:00:14]} Rxd1+ {[%clk 00:11:58]}
{[%emt 00:00:06]} 32. Bxd1 {[%clk 00:11:21]} {[%emt 00:00:06]} Qc4 {[%clk
00:06:08]} {[%emt 00:06:20]} 33. f3 {[%clk 00:04:39]} {[%emt 00:07:12]} Bd5
{[%clk 00:05:54]} {[%emt 00:00:43]} 34. Qc3 {[%clk 00:04:58]} {[%emt 00:00:12]}
Qxc3 {[%clk 00:03:51]} {[%emt 00:02:32]} 35. Nxc3 {[%clk 00:05:22]} {[%emt
00:00:06]} Bc6 {[%clk 00:04:10]} {[%emt 00:00:11]} 36. Ne4 {[%clk 00:05:39]}
{[%emt 00:00:13]} Bf8 {[%clk 00:04:25]} {[%emt 00:00:15]} 37. c3 {[%clk
00:04:44]} {[%emt 00:01:25]} Be7 {[%clk 00:04:21]} {[%emt 00:00:34]} 38. Bb3
{[%clk 00:02:46]} {[%emt 00:02:29]} Bd8 {[%clk 00:04:29]} {[%emt 00:00:21]} 39.
c4 {[%clk 00:02:59]} {[%emt 00:00:19]} b4 {[%clk 00:02:13]} {[%emt 00:02:46]}
40. Nc5 {[%clk 00:01:39]} {[%emt 00:01:49]} Bxa5 {[%clk 00:01:37]} {[%emt
00:01:05]} 41. Kf1 {[%clk 00:01:49]} {[%emt 00:00:20]} Kg7 {[%clk 00:26:30]}
{[%emt 00:05:37]} 42. Nxa6 {[%clk 00:28:46]} {[%emt 00:03:33]} Kf6 {[%clk
00:24:04]} {[%emt 00:02:56]} 43. Nc5 {[%clk 00:25:12]} {[%emt 00:04:04]} Ke7
{[%clk 00:21:06]} {[%emt 00:03:27]} 1/2-1/2

[Event "Veteran-SM 65+ 2025"]
[Site "Uppsala, Sweden"]
[Date "2025.06.29"]
[Round "2.2"]
[White "Marttala, Thomas"]
[Black "Haggvik, Kjell"]
[Result "1-0"]
[TimeControl "90 min for 40 move + 30 min with an increment of 30 sec starting move 1"]
[WhiteFideId "1701118"]
[BlackFideId "1776495"]
[WhiteElo "2123"]
[BlackElo "1932"]

1. e4 {[%clk 01:29:31]} {[%emt 00:01:28]} Nf6 {[%clk 01:30:48]} {[%emt
00:00:13]} 2. e5 {[%clk 01:29:43]} {[%emt 00:00:18]} Nd5 {[%clk 01:31:13]}
{[%emt 00:00:05]} 3. d4 {[%clk 01:30:04]} {[%emt 00:00:09]} d6 {[%clk
01:31:36]} {[%emt 00:00:07]} 4. Bc4 {[%clk 01:30:12]} {[%emt 00:00:21]} Nb6
{[%clk 01:31:16]} {[%emt 00:00:51]} 5. Bb3 {[%clk 01:30:33]} {[%emt 00:00:10]}
Nc6 {[%clk 01:30:43]} {[%emt 00:01:02]} 6. exd6 {[%clk 01:26:18]} {[%emt
00:04:44]} exd6 {[%clk 01:30:32]} {[%emt 00:00:42]} 7. Nf3 {[%clk 01:25:46]}
{[%emt 00:01:01]} Be7 {[%clk 01:30:39]} {[%emt 00:00:24]} 8. O-O {[%clk
01:25:11]} {[%emt 00:01:04]} O-O {[%clk 01:29:28]} {[%emt 00:01:42]} 9. c3
{[%clk 01:23:43]} {[%emt 00:01:58]} Bf5 {[%clk 01:29:25]} {[%emt 00:00:34]} 10.
Re1 {[%clk 01:23:30]} {[%emt 00:00:41]} Bf6 {[%clk 01:28:25]} {[%emt 00:01:31]}
11. Bf4 {[%clk 01:19:23]} {[%emt 00:04:36]} Qd7 {[%clk 01:23:16]} {[%emt
00:05:40]} 12. Bg5 {[%clk 01:15:10]} {[%emt 00:04:42]} Bxg5 {[%clk 01:19:10]}
{[%emt 00:04:37]} 13. Nxg5 {[%clk 01:15:31]} {[%emt 00:00:08]} d5 {[%clk
01:18:30]} {[%emt 00:01:11]} 14. Na3 {[%clk 01:07:49]} {[%emt 00:08:11]} Rae8
{[%clk 01:12:04]} {[%emt 00:06:57]} 15. Qd2 {[%clk 01:03:50]} {[%emt 00:04:29]}
h6 {[%clk 01:07:02]} {[%emt 00:05:32]} 16. Nf3 {[%clk 01:03:56]} {[%emt
00:00:23]} Rxe1+ {[%clk 01:04:11]} {[%emt 00:03:21]} 17. Rxe1 {[%clk 01:02:48]}
{[%emt 00:01:38]} Re8 {[%clk 01:04:12]} {[%emt 00:00:30]} 18. Rxe8+ {[%clk
00:55:26]} {[%emt 00:07:51]} Qxe8 {[%clk 01:04:36]} {[%emt 00:00:06]} 19. h3
{[%clk 00:55:42]} {[%emt 00:00:13]} Na5 {[%clk 00:50:03]} {[%emt 00:15:05]} 20.
Qf4 {[%clk 00:53:43]} {[%emt 00:02:28]} Nxb3 {[%clk 00:45:13]} {[%emt
00:05:21]} 21. Qxf5 {[%clk 00:52:49]} {[%emt 00:01:23]} Nc1 {[%clk 00:44:56]}
{[%emt 00:00:48]} 22. Qc2 {[%clk 00:45:44]} {[%emt 00:07:33]} Ne2+ {[%clk
00:43:33]} {[%emt 00:01:55]} 23. Kh2 {[%clk 00:36:01]} {[%emt 00:10:12]} Nf4
{[%clk 00:41:48]} {[%emt 00:02:15]} 24. g3 {[%clk 00:35:18]} {[%emt 00:01:12]}
Ne6 {[%clk 00:40:05]} {[%emt 00:02:14]} 25. Kg2 {[%clk 00:32:08]} {[%emt
00:03:40]} Qd8 {[%clk 00:32:34]} {[%emt 00:08:03]} 26. Qd3 {[%clk 00:31:07]}
{[%emt 00:01:30]} c6 {[%clk 00:30:10]} {[%emt 00:02:54]} 27. b3 {[%clk
00:31:12]} {[%emt 00:00:24]} Qd6 {[%clk 00:27:42]} {[%emt 00:02:58]} 28. Nc2
{[%clk 00:31:04]} {[%emt 00:00:38]} Nd7 {[%clk 00:23:26]} {[%emt 00:04:47]} 29.
Ne3 {[%clk 00:26:54]} {[%emt 00:04:39]} Nf6 {[%clk 00:21:52]} {[%emt 00:02:04]}
30. b4 {[%clk 00:24:13]} {[%emt 00:03:11]} g6 {[%clk 00:15:58]} {[%emt
00:06:24]} 31. Ne5 {[%clk 00:21:29]} {[%emt 00:03:13]} Kg7 {[%clk 00:12:31]}
{[%emt 00:03:58]} 32. N3g4 {[%clk 00:10:27]} {[%emt 00:11:33]} Nh5 {[%clk
00:09:32]} {[%emt 00:03:29]} 33. Qe3 {[%clk 00:10:14]} {[%emt 00:00:42]} g5
{[%clk 00:09:51]} {[%emt 00:00:12]} 34. Nxh6 {[%clk 00:09:14]} {[%emt
00:01:30]} Nef4+ {[%clk 00:09:44]} {[%emt 00:00:37]} 35. gxf4 {[%clk 00:09:13]}
{[%emt 00:00:30]} Qxh6 {[%clk 00:08:52]} {[%emt 00:01:22]} 36. fxg5 {[%clk
00:09:29]} {[%emt 00:00:14]} Qh7 {[%clk 00:07:15]} {[%emt 00:02:08]} 37. Kh2
{[%clk 00:04:26]} {[%emt 00:05:32]} Qf5 {[%clk 00:03:58]} {[%emt 00:03:47]} 38.
Qf3 {[%clk 00:03:14]} {[%emt 00:01:43]} Nf4 {[%clk 00:03:46]} {[%emt 00:00:42]}
39. h4 {[%clk 00:03:33]} {[%emt 00:00:10]} Qe4 {[%clk 00:03:02]} {[%emt
00:01:14]} 40. Qxe4 {[%clk 00:02:13]} {[%emt 00:01:51]} dxe4 {[%clk 00:03:19]}
{[%emt 00:00:12]} 41. c4 {[%clk 00:02:18]} {[%emt 00:00:26]} Nd3 {[%clk
00:03:15]} {[%emt 00:00:34]} 42. Ng4 {[%clk 00:01:19]} {[%emt 00:01:28]} Nxb4
{[%clk 00:02:47]} {[%emt 00:00:58]} 43. h5 {[%clk 00:29:10]} {[%emt 00:02:40]}
Nxa2 {[%clk 00:32:48]} {[%emt 00:00:29]} 44. h6+ {[%clk 00:29:07]} {[%emt
00:00:32]} Kh8 {[%clk 00:32:41]} {[%emt 00:00:38]} 45. Kh3 {[%clk 00:29:05]}
{[%emt 00:00:32]} a5 {[%clk 00:32:58]} {[%emt 00:00:14]} 46. Ne5 {[%clk
00:28:53]} {[%emt 00:00:41]} Kg8 {[%clk 00:33:10]} {[%emt 00:00:18]} 47. Kg4
{[%clk 00:29:07]} {[%emt 00:00:15]} a4 {[%clk 00:33:29]} {[%emt 00:00:12]} 48.
Kf5 {[%clk 00:29:22]} {[%emt 00:00:15]} Nc3 {[%clk 00:33:37]} {[%emt 00:00:22]}
49. Kf6 {[%clk 00:29:39]} {[%emt 00:00:12]} e3 {[%clk 00:32:37]} {[%emt
00:01:30]} 50. f3 {[%clk 00:26:35]} {[%emt 00:03:33]} e2 {[%clk 00:16:17]}
{[%emt 00:16:52]} 51. g6 {[%clk 00:26:16]} {[%emt 00:00:48]} fxg6 {[%clk
00:15:41]} {[%emt 00:01:07]} 52. Kxg6 {[%clk 00:26:29]} {[%emt 00:00:17]} e1=Q
{[%clk 00:15:31]} {[%emt 00:00:41]} 53. h7+ {[%clk 00:26:40]} {[%emt 00:00:18]}
Kf8 {[%clk 00:15:54]} {[%emt 00:00:08]} 54. h8=Q+ {[%clk 00:26:56]} {[%emt
00:00:13]} Ke7 {[%clk 00:16:16]} {[%emt 00:00:08]} 55. Qg7+ {[%clk 00:27:10]}
{[%emt 00:00:15]} Kd6 {[%clk 00:16:30]} {[%emt 00:00:17]} 56. Qd7# {[%clk
00:27:27]} {[%emt 00:00:12]} 1-0